Cogmind - Beta 16.1 @@@ ROGUE MODE // 2026.04.29 @ 13:51:41 Player: Back to the Scrapyard Result: Destroyed self via exploding Fusion Modulator Performance ------------- Evolutions (0) 0 Regions Visited (1) 200 Robots Destroyed (12) 60 Value Destroyed (188) 188 Prototype IDs (0) 0 Alien Tech Used (0) 0 Bonus (0) 0 TOTAL SCORE: 448 Bonus ------- None Cogmind --------- Core Integrity 0/250 Matter 300/300 Energy 233/250 System Corruption 0% Temperature Cool (36) Movement Core (450) Ox8 Location -10/Materials Parts ------- > --- POWER (1) -------- Ion Engine > --- PROPULSION (2) --- (None) > --- UTILITY (2) ------ Large Storage Unit Seismic Detector > --- WEAPON (2) ------- (None) > --- INVENTORY (15) --- Ion Engine Light Ion Engine Light Treads Light Treads Light Treads Light Treads Light Treads Aluminum Leg Aluminum Leg Small Storage Unit Hacking Suite Light Assault Rifle Peak State ------------ > --- POWER ------------ Ion Engine > --- PROPULSION ------- Aluminum Leg Aluminum Leg > --- UTILITY ---------- Small Storage Unit Seismic Detector > --- WEAPON ----------- Light Assault Rifle Light Assault Rifle > --- INVENTORY -------- Ion Engine Light Treads Light Treads EM Pulse Gun [Rating: 7] Favorites ----------- Power Ion Engine Engine Ion Engine Propulsion Aluminum Leg Leg Aluminum Leg Utility Seismic Detector Device Seismic Detector Storage Small Storage Unit Weapon Light Assault Rifle Energy Gun EM Pulse Gun Ballistic Gun Light Assault Rifle Build | -11 -10 ------- Run | Yrd Mat Slots Evolved . | . . Power . | . . Propulsion . | . . Utility . | . . Weapon . | . . Parts Attached 9 | 6 3 Power 1 | 1 . Engine 1 | 1 . Core . | . . Reactor . | . . Propulsion 2 | 2 . Treads . | . . Leg 2 | 2 . Wheel . | . . Hover . | . . Flight . | . . Utility 3 | 1 2 Device 1 | . 1 Storage 2 | 1 1 Processor . | . . Hackware . | . . Protection . | . . Artifact . | . . Weapon 3 | 2 1 Energy Gun 1 | . 1 Energy Cannon . | . . Ballistic Gun 2 | 2 . Ballistic Cannon . | . . Launcher . | . . Special Weapon . | . . Impact Weapon . | . . Slashing Weapon . | . . Piercing Weapon . | . . Special Melee Weapon . | . . Unidentified Prototypes . | . . Parts Lost 4 | . 4 Power . | . . Propulsion 2 | . 2 Utility . | . . Weapon 2 | . 2 Highest Loss Streak 3 | . 3 To Critical Strikes . | . . Average Backups 6 | 3 6 Power 1 | 1 1 Propulsion 2 | 1 2 Utility 1 | . 1 Weapon 1 | 1 1 Tool/Special . | . . Unused Backups 7 | . 7 Power 2 | . 2 Propulsion 4 | . 4 Utility 1 | . 1 Weapon . | . . Tool/Special . | . . Average Slot Usage (%) 96 | . 96 Engine 14 | . 14 Leg 24 | . 24 Device 14 | . 14 Storage 14 | . 14 Energy Gun 7 | . 7 Ballistic Gun 20 | . 20 Peak Build Rating 7 | 6 7 Average Rating 6 | 4 6 On Entrance 3 | . 6 Avg Prop Armor Cover (%) . | . . Naked Turns . | . . Heaviest Build 29 | 12 29 Greatest Support 20 | 20 20 Greatest Overweight (x) 2 | . 2 Average Overweight (x) . | . . Largest Inventory Capacity 15 | 8 15 Average Capacity 9 | 6 10 Most Carried 12 | 6 12 Average Carried 6 | 3 6 Final Capacity 15 | 8 15 Final Carried 12 | 5 12 Class Distribution -------------------- 100% | Mutant Dominant Class ---------------- Mutant | -10/Materials Resources | -11 -10 ----------- Run | Yrd Mat Matter Collected 371 | 240 131 Remotely . | . . Salvage Created 237 | 30 207 Parts 20 | 4 16 Haulers Intercepted . | . . Recyclers Shooed 1 | . 1 Parts Field Recycled . | . . Retrieved Matter . | . . Parts Self-Destructed . | . . Prevented . | . . Parts Restored . | . . Kills | -11 -10 ------- Run | Yrd Mat Combat Hostiles Destroyed 8 | . 8 Guns 8 | . 8 Classes Destroyed 5 | 1 4 Worker 1 | . 1 Tunneler 1 | 1 . Operator 2 | . 2 Swarmer 6 | . 6 Grunt 2 | . 2 Best Kill Streak 3 | 1 3 Combat Bots Only 3 | . 3 Max Kills in Single Turn 2 | 1 2 Gunslinging 1 | . 1 Exploded . | . . Melee . | . . Uniques/NPCs Destroyed . | . . Combat | -11 -10 -------- Run | Yrd Mat Hostile Shots Fired 63 | . 63 Missed 9 | . 9 Hits 54 | . 54 Projectile 54 | . 54 Critical Strikes 1 | . 1 Damage Taken 707 | . 707 Core 251 | . 251 Absorbed by Shields . | . . Core Remaining (%) 100 | 100 . Volleys Fired 55 | 7 48 Largest 2 | 2 2 Hottest 60 | 40 60 Shots Fired 110 | 14 96 Gun 110 | 14 96 Cannon . | . . Launcher . | . . Special . | . . Kinetic 90 | 14 76 Thermal . | . . Explosive . | . . Electromagnetic 20 | . 20 Robot Hit Streak 12 | 4 12 Robot Miss Streak 4 | 4 3 Penetration Max . | . . Secondary Targets 1 | . 1 Max Gunslinging Chain 1 | . 1 Shots Hit Robots 65 | 8 57 Core Hits 20 | 2 18 Critical Kills . | . . Critical Parts Destroyed . | . . Critical Strikes . | . . Melee Attacks . | . . Impact . | . . Slashing . | . . Piercing . | . . Sneak Attacks . | . . Combat Hostiles . | . . Follow-up Attacks . | . . Damage Inflicted 734 | 74 660 Guns 586 | 74 512 Cannons . | . . Explosions 137 | . 137 Melee . | . . Ramming 11 | . 11 Kinetic 430 | 74 356 Thermal 137 | . 137 Explosive . | . . Electromagnetic 156 | . 156 Impact . | . . Slashing . | . . Piercing . | . . Highest Corruption . | . . Average Corruption . | . . Corruption Purged . | . . Corruption Blocked . | . . Overload Shots . | . . Overflow Damage 78 | . 78 Projectiles . | . . Explosions 78 | . 78 Melee . | . . Knockbacks . | . . Impact . | . . Kinetic . | . . Secondary . | . . Self-Inflicted Damage 231 | . 231 Shots 3 | . 3 Rammed . | . . Targets Rammed 2 | . 2 Kicked 2 | . 2 Crushed . | . . Highest Temperature 70 | . 70 Average Temperature 29 | . 29 Received Heat Transfer 84 | . 84 Siege Activations . | . . Martial Activations . | . . Shielding Activations . | . . Robots Disrupted . | . . Combat Hostiles . | . . Robots Corrupted . | . . Combat Hostiles . | . . Parts Fried . | . . Impact Corruptions . | . . Robots Melted . | . . Combat Hostiles . | . . Parts Melted . | . . Heat Transferred 100 | . 100 Parts Sabotaged . | . . Parts Stolen . | . . Parts Stripped . | . . Power Chain Reactions 1 | . 1 Alert | -11 -10 ------- Run | Yrd Mat Maximum Alert Level . | . . Low Security (%) 100 | 100 100 Level 1 . | . . Level 2 . | . . Level 3 . | . . Level 4 . | . . Level 5 . | . . High Security . | . . Max Security . | . . Peak Influence 166 | . 166 Initial . | . . Average 64 | . 75 Influence Increases 296 | 5 291 Destroy 0b10 Robot/C 160 | . 160 Destroy 0b10 Robot/NC 20 | 5 15 Destroy Leader 30 | . 30 Successful Hack 26 | . 26 Disable Machine 30 | . 30 Lose Combat Pursuer 30 | . 30 Influence Decreases 211 | 5 206 Time Decay 171 | 5 166 Lost Part 40 | . 40 Squads Dispatched 1 | . 1 Investigation . | . . Extermination . | . . Reinforcement 1 | . 1 Assault . | . . Garrison . | . . Intercept . | . . Searches Triggered . | . . Construction Impeded . | . . Haulers Reinforced . | . . Active Scanning Responses . | . . Cargo Convoy Interrupts . | . . Stealth | -11 -10 --------- Run | Yrd Mat Distress Signals . | . . Communications Jammed . | . . Distress Signals . | . . Times Spotted 13 | . 13 Peak Tracking Total 6 | . 6 Tactical Retreats 1 | . 1 Traps | -11 -10 ------- Run | Yrd Mat Traps Triggered . | . . Indirectly . | . . Trap Hack Attempts . | . . Triggered . | . . Disarmed . | . . Reprogrammed . | . . Reused . | . . Traps Extracted . | . . Installed . | . . Triggered . | . . Machines | -11 -10 ---------- Run | Yrd Mat Machines Disabled 2 | . 2 Max in Single Turn 2 | . 2 Machines Repaired . | . . Machines Dismantled . | . . Machines Sabotaged . | . . Overloaded Fab Kills . | . . Hacking | -11 -10 --------- Run | Yrd Mat Machines Accessed 3 | . 3 Terminals 3 | . 3 Fabricators . | . . Repair Stations . | . . Recycling Units . | . . Scanalyzers . | . . Garrison Access . | . . Total Hacks 9 | . 9 Successful 4 | . 4 Failed 5 | . 5 Catastrophic 1 | . 1 Database Lockouts . | . . Manual 9 | . 9 Terminals 9 | . 9 Fabricators . | . . Repair Stations . | . . Recycling Units . | . . Scanalyzers . | . . Garrison Access . | . . Terminal Hacks 1 | . 1 Branch Access Points 1 | . 1 Fabricator Hacks . | . . Repair Station Hacks . | . . Recycling Unit Hacks . | . . Scanalyzer . | . . Garrison Access Hacks . | . . Unauthorized Hacks 3 | . 3 Terminals 3 | . 3 Botnet 3 | . 3 Fabricators . | . . Repair Stations . | . . Recycling Units . | . . Scanalyzers . | . . Garrison Access . | . . Data Cores Recovered 1 | . 1 Used . | . . Hacking Detections 2 | . 2 Full Trace Events . | . . Feedback Events . | . . Feedback Blocked . | . . Robot Schematics Acquired . | . . Robots Built . | . . Authchips . | . . Time . | . . Total Robot Build Rating . | . . Part Schematics Acquired . | . . Parts Built . | . . Authchips . | . . Time . | . . Total Part Build Rating . | . . Part Studies Acquired . | . . Parts Repaired . | . . Time . | . . Parts Recycled . | . . Recycled Matter . | . . Retrieved Matter . | . . Retrieved Components . | . . Parts Scanalyzed . | . . Part Schematics Acquired . | . . Parts Damaged . | . . Bothacking | -11 -10 ------------ Run | Yrd Mat Used RIF Installer . | . . Robots Hacked . | . . Non-combat . | . . Combat . | . . Robot Hacks Applied . | . . Relay Couplers Released . | . . Fabnet Peak Effective % . | . . Robots Rewired . | . . Allies Hacked . | . . Hacks Repelled . | . . Allies | -11 -10 -------- Run | Yrd Mat Total Allies . | . . Largest Group . | . . Highest-Rated Group . | . . Highest-Rated Ally . | . . Total Orders . | . . Ally Attacks . | . . Total Damage . | . . Kills . | . . Allies Corrupted . | . . Allies Melted . | . . Intel | -11 -10 ------- Run | Yrd Mat Active Infowar (turns) 522 | . 522 Seismic 522 | . 522 Robot Analysis Total . | . . Derelict Logs Recovered . | . . Drone Launches . | . . Drone Recoveries . | . . Exploration | -11 -10 ------------- Run | Yrd Mat Turns Passed 612 | 90 522 Spaces Moved 322 | 54 268 Core 13 | 13 . Treads . | . . Legs 309 | 41 268 Wheels . | . . Hover . | . . Flight . | . . Fastest Speed 50 | 50 120 Average Speed 134 | 103 141 Slowest Speed 260 | 120 260 Overloaded Moves . | . . Propulsion Burnouts . | . . Robots Hopped . | . . Potential Cave-ins . | . . Cave-ins Triggered . | . . Exploration Rate (%) 29 | 3 56 Regions Visited 1 Branch Regions . Pre-discovered Areas . | . . Known Exits Taken . | . . Unknown Exits Taken 1 | 1 . Scrap Searched . | . . Spaces Dug . | . . Terrain Destroyed . | . . Melee . | . . Projectile . | . . AOE . | . . Terrain Rammed . | . . Walls Destroyed . | . . Machines Disabled . | . . Actions | -11 -10 --------- Run | Yrd Mat Total 407 | 77 330 Wait 1 | . 1 Move 321 | 53 268 Hop . | . . Pick Up 19 | 11 8 Fast Attach . | . . Attach 7 | 6 1 Detach . | . . Swap 2 | . 2 Drop . | . . Fire 55 | 7 48 Melee . | . . Ram . | . . Kick 2 | . 2 Crush . | . . Escape Stasis . | . . Rewire . | . . Trap . | . . Miscellaneous . | . . Route ------- -11/Scrapyard -10/Materials (discovered 2 exits: [*Mat] / Min) History --------- Turn | Location | Event 15 | -11/Scrapyard | Discovered new exit (range 15) 91 | -11/Scrapyard | Entered Materials 302 | -10/Materials | Build established: Mutant 334 | -10/Materials | Identified exit to Mines 373 | -10/Materials | Discovered new exit (range 6) 613 | -10/Materials | Destroyed self via exploding Fusion Modulator Last Messages --------------- 00489_ G-34 Mercenary destroyed. 00500_ Acquired Aluminum Leg. 00501_ Acquired 29 matter. 00502_ K-01 Serf collects debris. 00506_ Acquired Aluminum Leg. 00507_ K-01 Serf collects debris. 00510_ Kicked K-01 Serf. 00514_ Acquired 1 matter. 00560_ R-06 Scavenger collects Heat Sink. 00594_ Acquired Lgt. Treads. 00613_ Chain reaction triggered in Lgt. Ion Engine. 00613_ Fusion Modulator explodes. 00613_ Aluminum Leg destroyed. 00613_ Destroyed Aluminum Leg. 00613_ EM Pulse Gun destroyed. 00613_ Destroyed EM Pulse Gun. 00613_ Lgt. Assault Rifle destroyed. 00613_ Destroyed Lgt. Assault Rifle. 00613_ O-16 Technician destroyed. Map ----- +----------------------------------------------------+ | ?????????????????????????????????????????? | | ?????????????????????????????????????????# | | ?????????????????????????????????????????# | | ????????????????????????????##########???# | | ????????????????????????????# ##### | | ????????????????????????????# T # # | | ????????????????????????????# # # | | ????????????????????????????# # # | | ????????????????????????????# " / + | | ????????????????????????????# " # # | | ????????????????????????????# # # | | ????????????????????????????# # # | | ?????????????>??????????????# # # | | ????????????????????????????########## # | | ?????????????????????????????????????# # | | ?????????????????????????????????????# + | | ???????????#?????????????????????????# # | | ???????????# ????????????????????????# # | | ???????????# ???????????????????????# # | | ???????????# ???????????????????????# # | | ???????????# ??????????????????????# # | | ???????????# ################??????# # | | ???????????# #??????+ # | | ???????????+ #??????? ? | | ???????????# ^ +??????????? | | ???????????# @ !!! #??????????? | | ???????????# ^! #???????????# | | ???????????# = t #?????????? # | | ???????????# #????????? # | | ????# "T" ######### + | | ????? """ # | | ????? ###### r # | | ????? ??????# # | | ????? ???????# ########### ###T#### | | ????? ????????# #?# # #??????? | | ?????? ?????????# #?# """ # #??????? | | ????????????????# #?# """ + ######## | | ????????????????# ?+ """ # | | ????????????????# #?# # | | ????????????????+ #?#######?# | | ????????????????##+#??????????# #" ##### | | ???????????????????????????#### #"T#???# | | ??????????????????????????##! ####???# | | ??????????????????????????#! #??????# | | ??????????????????????????# #??????# | | ??????????????????????????#! #??????# | | ??????????????????????????#! #??????# | | ??????????????????????????##! ###%#??????? | | ???????????????????????????####?#%#??????? | | ????????????????????????????????#*#??????? | +----------------------------------------------------+ Best States ------------- Heat Dissipation 25 Energy Generation 10 Energy Capacity 250 Matter Stores 300 Matter Capacity 300 Sight Range 16 Terrain Scan Density 10 Evasion (%) 55 Item Schematics ----------------- None Robot Schematics ------------------ None Fabricated ------------ Nothing Repaired ---------- Nothing Studied --------- None Alien Tech Used ----------------- None Achievements -------------- None Challenges ------------ None Game ------ Seed NodeArcsightWand Manual? 0 Play Time 00:08:41 Cumulative 243.0 hours Start 2026.04.29 @ 13:46:54 End 2026.04.29 @ 13:51:41 Sessions 1 Manual Loads 0 Difficulty Rogue Special Mode None Game No. 332 Rogue 314 Adventurer 18 Explorer 0 Win Type - Total 1 Types 1/0/0/0/0/0/0/0/0/0 Lore% 34 Gallery% 48 Achievement% 35 Wizard Run 0 Options --------- Layout 1 ASCII 0 Keyboard 0 Movement Mouse Keybinds 0 Fullscreen 1 Font 24/Smallcaps Map View 50x40 Zoom Use 0% Tactical HUD 1 Map Filters NONE Filters NONE Steam 1 RUN: acf4865d-4daf-4dbb-afcb-76f8f57c20d5